bitfinex/quotes_BTCUSD_20220120
["timestamp","ask_amount","ask_price","bid_price","bid_amount"]
[1642681323194,0.00112608,42012.0,42008.0,0.196764]
[1642681323396,0.27453546,42015.0,42009.0,0.383597]
[1642681323598,0.00077427,42012.0,42009.0,0.05684225]
[1642681323792,0.00077427,42012.0,42010.0,0.00010314]
[1642681324393,0.00077427,42012.0,42011.0,0.19772061]
[1642681324596,0.002,42015.0,42012.0,0.00745877]
[1642681324794,0.002,42015.0,42011.0,1.0282597]
[1642681324795,0.00087243,42013.0,42011.0,0.64474865]
[1642681325094,0.00087243,42013.0,42012.0,0.73843858]
[1642681325294,0.00087243,42013.0,42012.0,0.38366576]
[1642681325492,0.00087243,42013.0,42012.0,0.48366576]
[1642681325694,0.26931942,42020.0,42012.0,0.48366576]
[1642681325893,0.00087245,42015.0,42014.0,0.0595101]
[1642681326948,0.26931942,42020.0,42014.0,0.0595101]
[1642681327144,0.0010897,42017.0,42014.0,0.0595101]
[1642681328046,6.876e-05,42020.0,42014.0,0.0825101]
[1642681328245,6.876e-05,42020.0,42014.0,0.08244114]
[1642681328246,0.00108969,42018.0,42014.0,0.08244114]
[1642681329346,6.876e-05,42020.0,42014.0,0.05944114]
[1642681329547,0.00110633,42018.0,42014.0,0.05944114]
[1642681329747,0.00110633,42018.0,42013.0,0.31901291]
[1642681330146,1.91614105,42015.0,42014.0,0.016]
[1642681331311,1.91614105,42015.0,42012.0,6.876e-05]
[1642681331706,1.91614105,42015.0,42009.0,0.00012033]
[1642681332106,1.91614105,42015.0,42012.0,0.029]
[1642681333007,1.91614105,42015.0,42013.0,0.24434514]
[1642681333206,1.91614105,42015.0,42014.0,0.05951293]
[1642681333606,1.91614105,42015.0,42013.0,0.39434514]
[1642681334007,1.91614105,42015.0,42014.0,0.033]
[1642681335354,1.91614105,42015.0,42013.0,0.1]
[1642681335554,1.91614105,42015.0,42009.0,0.05963861]
[1642681335956,1.91614105,42015.0,42010.0,0.00010314]
[1642681336555,1.91614105,42015.0,42011.0,0.00518821]
[1642681336756,1.91724379,42015.0,42010.0,0.00710037]
[1642681336955,1.91724379,42015.0,42012.0,6.876e-05]
[1642681337155,1.91724379,42015.0,42011.0,0.24461996]
[1642681337354,1.91724379,42015.0,42012.0,6.876e-05]
[1642681337556,1.91724379,42015.0,42012.0,0.00593483]
[1642681337757,1.91614105,42015.0,42013.0,0.00572592]
[1642681337998,1.91614105,42015.0,42012.0,0.01606876]
[1642681338196,0.00110273,42016.0,42014.0,0.00647353]
[1642681338398,0.00110273,42016.0,42012.0,0.01606876]
[1642681338698,0.00110273,42016.0,42013.0,0.00122631]
[1642681338903,6.876e-05,42020.0,42013.0,0.00122631]
[1642681339099,0.00110273,42016.0,42014.0,0.17851677]
[1642681339399,0.00110273,42016.0,42014.0,0.16901191]
[1642681339997,0.00110273,42016.0,42014.0,0.18401191]
[1642681340198,1.68178139,42017.0,42014.0,0.18401191]
[1642681340398,1.68288354,42017.0,42014.0,0.18401191]
[1642681340800,1.68288354,42017.0,42014.0,0.23401191]
[1642681341000,1.68288354,42017.0,42014.0,0.115]
[1642681341001,0.31376813,42016.0,42014.0,0.115]
[1642681341302,0.23789555,42016.0,42014.0,0.115]
[1642681341506,0.23789555,42016.0,42014.0,0.065]
[1642681341757,0.23789555,42016.0,42014.0,0.015]
[1642681342147,0.23789555,42016.0,42014.0,0.061]
[1642681342549,0.72722765,42015.0,42014.0,0.061]
[1642681343150,0.22722765,42015.0,42014.0,0.061]
[1642681343348,0.22722765,42015.0,42012.0,6.876e-05]
[1642681343349,0.55848084,42015.0,42012.0,6.876e-05]
[1642681343751,0.55848084,42015.0,42010.0,0.00010314]
[1642681344155,0.56148084,42015.0,42012.0,0.055]
[1642681345352,0.55848084,42015.0,42010.0,0.00010314]
[1642681345600,0.22722765,42015.0,42010.0,0.00010314]
[1642681346198,0.23022765,42015.0,42010.0,0.06410314]
[1642681346396,0.23133002,42015.0,42010.0,0.06410314]
[1642681346600,0.23133002,42015.0,42014.0,0.52808788]
[1642681346901,0.23133002,42015.0,42014.0,0.57808788]
[1642681347098,0.23133002,42015.0,42014.0,0.67808788]
[1642681347298,0.22722765,42015.0,42014.0,0.67808788]
[1642681348097,0.23122765,42015.0,42014.0,0.71208788]
[1642681349553,0.22722765,42015.0,42014.0,0.67808788]
[1642681349949,0.22722765,42015.0,42014.0,0.57808788]
[1642681350151,0.23122765,42015.0,42014.0,0.61208788]
[1642681350852,0.004,42015.0,42014.0,0.61208788]
[1642681351053,0.004,42015.0,42014.0,0.71208788]
[1642681351454,1.92288369,42017.0,42014.0,1.00280268]
[1642681351653,1.92288369,42017.0,42015.0,0.32957831]
[1642681351855,0.2411023,42017.0,42015.0,0.33643031]
[1642681352056,0.248,42017.0,42016.0,0.3908249]
[1642681352253,0.248,42017.0,42016.0,0.73244159]
[1642681352461,0.248,42017.0,42016.0,0.88244159]
[1642681352652,0.248,42017.0,42016.0,0.87521369]
[1642681352854,0.248,42017.0,42016.0,0.483597]
[1642681353106,0.248,42017.0,42016.0,0.1]
[1642681353304,0.248,42017.0,42015.0,0.06852449]
[1642681353505,0.248,42017.0,42015.0,0.012]
[1642681353906,0.24,42017.0,42014.0,0.57808788]
[1642681354107,0.247,42017.0,42015.0,0.012]
[1642681355309,0.247,42017.0,42015.0,0.01193873]
[1642681355510,0.83254927,42016.0,42015.0,0.01193873]
[1642681355710,0.83254927,42016.0,42014.0,0.52808788]
[1642681355910,0.88419044,42015.0,42014.0,0.52808788]
[1642681356111,1.26778744,42015.0,42014.0,0.52808788]
[1642681356510,0.33419044,42015.0,42014.0,0.57808788]
[1642681356749,0.068522,42016.0,42014.0,0.57808788]
[1642681356946,0.60847689,42015.0,42014.0,0.57808788]
[1642681357743,0.3,42015.0,42014.0,0.57808788]
[1642681358144,0.308,42015.0,42014.0,0.57808788]
[1642681359344,0.3,42015.0,42014.0,0.57808788]
[1642681359544,0.6,42015.0,42014.0,0.57808788]
[1642681360145,0.61,42015.0,42014.0,0.57808788]
[1642681360601,0.31,42015.0,42014.0,0.57808788]
[1642681361503,0.7,42015.0,42014.0,0.57808788]
[1642681362103,0.709,42015.0,42014.0,0.57808788]
[1642681362507,0.309,42015.0,42014.0,0.57808788]
[1642681363504,0.7,42015.0,42014.0,0.57808788]
[1642681363904,0.3,42015.0,42014.0,0.57808788]
[1642681364353,0.309,42015.0,42014.0,0.57808788]
[1642681364554,0.659,42015.0,42014.0,0.57808788]
[1642681364952,0.309,42015.0,42014.0,0.57808788]
[1642681365653,0.3,42015.0,42014.0,0.57808788]
[1642681366254,0.31,42015.0,42014.0,0.57808788]
[1642681367457,0.6,42015.0,42014.0,0.57808788]
[1642681368105,0.92584938,42015.0,42014.0,0.57808788]
[1642681368305,1.31844638,42015.0,42014.0,0.57808788]
[1642681369204,0.992597,42015.0,42014.0,0.57808788]
[1642681369403,0.983597,42015.0,42014.0,0.57808788]
[1642681370209,0.992597,42015.0,42014.0,0.57808788]
[1642681371405,0.983597,42015.0,42014.0,0.57808788]
[1642681372252,0.992597,42015.0,42014.0,0.57808788]
[1642681373148,0.609,42015.0,42014.0,0.57808788]
[1642681373348,0.309,42015.0,42014.0,0.57808788]
[1642681373548,0.3,42015.0,42014.0,0.57808788]
[1642681374249,0.01,42015.0,42014.0,0.57808788]
[1642681374449,0.01,42015.0,42014.0,0.67808788]
[1642681375354,0.24110229,42017.0,42014.0,0.67808788]
[1642681376302,0.246,42017.0,42015.0,0.23027539]
[1642681376502,0.246,42017.0,42015.0,0.28027539]
[1642681377204,0.246,42017.0,42015.0,0.05]
[1642681377403,0.246,42017.0,42014.0,0.67808788]
[1642681377604,0.305521,42017.0,42014.0,0.67808788]
[1642681377804,0.305521,42017.0,42014.0,0.67801039]
[1642681378014,0.299521,42017.0,42014.0,0.67801039]
[1642681378205,0.309521,42017.0,42014.0,0.57801039]
[1642681378809,0.383597,42016.0,42014.0,0.57801039]
[1642681379248,0.79226461,42015.0,42014.0,0.52808788]
[1642681379452,1.17586161,42015.0,42014.0,0.52808788]
[1642681380248,0.392597,42015.0,42014.0,0.52808788]
[1642681381048,0.009,42015.0,42014.0,0.57808788]
[1642681381448,0.3006233,42017.0,42014.0,0.57808788]
[1642681382047,0.299521,42017.0,42014.0,0.57808788]
[1642681382249,0.307521,42017.0,42014.0,0.57808788]
[1642681383106,0.383597,42016.0,42014.0,0.57808788]
[1642681383506,0.32436374,42015.0,42014.0,0.57808788]
[1642681384308,0.71796074,42015.0,42014.0,0.57808788]
[1642681384508,0.76556074,42015.0,42014.0,0.57808788]
[1642681384708,0.76556074,42015.0,42014.0,0.52808788]
[1642681385510,2.01456074,42015.0,42014.0,0.52808788]
[1642681385709,2.01456074,42015.0,42014.0,0.57808788]
[1642681385917,0.75556074,42015.0,42014.0,0.57808788]
[1642681386309,0.76456074,42015.0,42014.0,0.57808788]
[1642681386956,0.76456074,42015.0,42014.0,0.52808788]
[1642681387556,0.75556074,42015.0,42014.0,0.52808788]
[1642681388357,0.76556074,42015.0,42014.0,0.52808788]
[1642681389560,0.75556074,42015.0,42014.0,0.52808788]
[1642681390360,0.76456074,42015.0,42014.0,0.52808788]
[1642681391596,0.75146031,42015.0,42014.0,0.52808788]
[1642681392196,2.01046031,42015.0,42014.0,0.52808788]
[1642681392397,2.01846031,42015.0,42014.0,0.52808788]
[1642681392898,2.01846031,42015.0,42014.0,0.57808788]
[1642681392899,0.75946031,42015.0,42014.0,0.57808788]
[1642681393097,0.439197,42015.0,42014.0,0.57808788]
[1642681393899,0.439197,42015.0,42014.0,0.52808788]
[1642681394104,2.23102714,42015.0,42014.0,0.52808788]
[1642681394358,2.24502714,42015.0,42014.0,0.52808788]
[1642681394560,2.94502714,42015.0,42014.0,0.01064332]
[1642681394758,2.94502714,42015.0,42014.0,4.332e-05]
[1642681394958,2.94502714,42015.0,42011.0,8.595e-05]
[1642681394959,0.909539,42014.0,42011.0,8.595e-05]
[1642681395159,1.07673149,42012.0,42011.0,8.595e-05]
[1642681395358,0.19513767,42004.0,42000.0,0.00670101]
[1642681395558,0.19513767,42004.0,42000.0,0.0062547]
[1642681395757,0.19513767,42004.0,42001.0,0.00025785]
[1642681396160,1.91034608,42001.0,41999.0,0.00727333]
[1642681396363,1.91034608,42001.0,41999.0,0.00756556]
[1642681396557,1.91034608,42001.0,42000.0,0.00552086]
[1642681396759,1.91034608,42001.0,42000.0,0.00604302]
[1642681396959,1.91034608,42001.0,42000.0,0.00657516]
[1642681397165,1.91034608,42001.0,41998.0,0.00568447]
[1642681397361,1.91034608,42001.0,41999.0,0.00602773]
[1642681397562,1.91034608,42001.0,42000.0,0.00629162]
[1642681397761,1.91034608,42001.0,42000.0,0.00690929]
[1642681398004,1.91034608,42001.0,41998.0,0.00737805]
[1642681398205,1.91034608,42001.0,42000.0,0.05953529]
[1642681398406,1.91034608,42001.0,42000.0,0.06570179]
[1642681398407,1.91434608,42001.0,42000.0,0.06570179]
[1642681398912,1.91434608,42001.0,42000.0,0.05953529]
[1642681399507,1.91034608,42001.0,42000.0,0.05953529]
[1642681401609,2.15034608,42001.0,42000.0,0.05953529]
[1642681401865,2.14654591,42001.0,41999.0,0.58268722]
[1642681402067,1.5875157,42000.0,41999.0,0.58268722]
[1642681402269,1.6469757,42000.0,41999.0,0.58268722]
[1642681402663,1.88990475,42000.0,41999.0,0.58268722]
[1642681402863,3.14890475,42000.0,41999.0,0.58268722]
[1642681403062,2.79498605,42000.0,41999.0,0.58268722]
[1642681403663,1.94498605,42000.0,41999.0,0.58268722]
[1642681404262,1.95598605,42000.0,41999.0,0.58268722]
[1642681405362,0.454057,42000.0,41999.0,0.58268722]
[1642681405629,0.80243031,42000.0,41999.0,0.58268722]
[1642681406421,0.81443031,42000.0,41999.0,0.58268722]
[1642681406823,0.80257031,42000.0,41999.0,0.58268722]
[1642681407023,0.80257031,42000.0,41999.0,0.63268722]
[1642681407227,0.80257031,42000.0,41999.0,0.58268722]
[1642681407624,0.79057031,42000.0,41999.0,0.58268722]
[1642681407824,0.79057031,42000.0,41999.0,0.63268722]
[1642681408424,0.80357031,42000.0,41999.0,0.58268722]
[1642681408625,0.95863031,42000.0,41999.0,0.58268722]
[1642681409024,3.00169031,42000.0,41999.0,0.58268722]
[1642681410056,2.96763031,42000.0,41999.0,0.58268722]
[1642681410359,1.857257,42000.0,41999.0,0.58268722]
[1642681410556,0.598257,42000.0,41999.0,0.58268722]
[1642681410957,0.550657,42000.0,41999.0,0.63268722]
[1642681411761,0.538657,42000.0,41999.0,0.63268722]
[1642681412359,0.553657,42000.0,41999.0,0.63268722]
[1642681413408,0.398597,42000.0,41999.0,0.63268722]
[1642681413609,2.14654591,42001.0,41999.0,0.63268722]
[1642681414206,0.383505,42000.0,41999.0,0.63268722]
[1642681414412,0.383505,42000.0,41999.0,0.63868722]
[1642681415209,0.37586933,42000.0,41999.0,0.63868722]
[1642681415708,0.37586933,42000.0,41999.0,0.63268722]
[1642681416111,0.37586933,42000.0,41996.0,0.11907909]
[1642681416112,0.1432,41998.0,41996.0,0.11907909]
[1642681416314,0.7850237,41997.0,41994.0,0.00097501]
[1642681416509,0.15351263,41996.0,41994.0,0.00097501]
[1642681416755,0.431117,41995.0,41994.0,0.00097501]
[1642681416962,0.731117,41995.0,41993.0,0.05955313]
[1642681417253,0.431117,41995.0,41994.0,0.00010314]
[1642681417853,0.383517,41995.0,41994.0,0.00010314]
[1642681418353,0.398517,41995.0,41994.0,0.18384009]
[1642681418553,0.015,41995.0,41994.0,0.23384009]
[1642681418754,0.01492429,41995.0,41994.0,0.23384009]
[1642681419560,0.1432,41998.0,41994.0,0.23384009]
[1642681419756,0.383517,41997.0,41994.0,0.05010314]
[1642681419955,0.383517,41997.0,41995.0,8.595e-05]
[1642681420355,0.438517,41997.0,41995.0,8.595e-05]
[1642681420803,0.438517,41997.0,41995.0,0.19315404]
[1642681421104,0.438517,41997.0,41996.0,6.876e-05]
[1642681421505,0.438517,41997.0,41996.0,0.00184231]
[1642681421702,0.383517,41997.0,41996.0,0.00184231]
[1642681422308,0.431517,41997.0,41996.0,0.00184231]
[1642681423309,0.431517,41997.0,41996.0,0.33212323]
[1642681423310,0.048,41997.0,41996.0,0.33212323]
[1642681423509,0.048,41997.0,41996.0,0.33891747]
[1642681423708,2.14654591,42001.0,41997.0,0.00618617]
[1642681423910,2.14654591,42001.0,41998.0,0.00591034]
[1642681424106,2.14654591,42001.0,41999.0,0.00662261]
[1642681424355,2.21154591,42001.0,42000.0,0.00628209]
[1642681424554,2.21154591,42001.0,42000.0,0.00716857]
[1642681424759,2.21154591,42001.0,41999.0,0.05953464]
[1642681425352,2.21154591,42001.0,41999.0,0.10953464]
[1642681425552,2.14654591,42001.0,41999.0,0.10953464]
[1642681425754,0.383517,42000.0,41999.0,0.10953464]
[1642681425954,0.383517,42000.0,41999.0,0.05]
[1642681426258,0.383517,42000.0,41996.0,0.00184231]
[1642681426453,0.383517,42000.0,41996.0,6.876e-05]
[1642681426454,0.453517,42000.0,41996.0,6.876e-05]
[1642681426854,0.453517,42000.0,41996.0,0.05006876]
[1642681427154,0.01186,41999.0,41996.0,6.876e-05]
[1642681427369,0.383517,41998.0,41996.0,6.876e-05]
[1642681427555,0.383517,41998.0,41995.0,8.595e-05]
[1642681428406,0.403517,41998.0,41995.0,8.595e-05]
[1642681428706,0.403517,41998.0,41995.0,0.23287181]
[1642681428905,0.403517,41998.0,41995.0,0.28287181]
[1642681429107,0.403517,41998.0,41996.0,6.876e-05]
[1642681429708,0.383517,41998.0,41996.0,6.876e-05]
[1642681430109,0.37626571,41998.0,41996.0,6.876e-05]
[1642681430313,0.37626571,41998.0,41996.0,0.0596136]
[1642681430511,0.39826571,41998.0,41996.0,0.0596136]
[1642681431411,0.39826571,41998.0,41996.0,6.876e-05]
[1642681431853,0.37626571,41998.0,41996.0,6.876e-05]
[1642681432458,0.39926571,41998.0,41996.0,6.876e-05]
[1642681432853,0.39926571,41998.0,41996.0,0.23411434]
[1642681433655,0.37626571,41998.0,41996.0,0.23411434]
[1642681434454,0.40126571,41998.0,41996.0,0.23411434]
[1642681434656,0.025,41998.0,41996.0,0.23411434]
[1642681434856,0.025,41998.0,41996.0,0.24126817]
[1642681435060,0.025,41998.0,41997.0,0.00710783]
[1642681435256,0.025,41998.0,41997.0,0.21750287]
[1642681435508,0.025,41998.0,41997.0,0.26750287]
[1642681435708,2.14654591,42001.0,41997.0,0.26750287]
[1642681435913,0.383517,42000.0,41998.0,0.05954065]
[1642681436507,0.437517,42000.0,41998.0,0.05954065]
[1642681436913,0.437517,42000.0,41997.0,0.05]
[1642681437109,0.437517,42000.0,41996.0,6.876e-05]
[1642681437720,0.383517,42000.0,41996.0,6.876e-05]
[1642681437912,0.19968108,41999.0,41996.0,6.876e-05]
[1642681438211,0.383517,41998.0,41996.0,6.876e-05]
[1642681438612,0.052,41999.0,41996.0,6.876e-05]
[1642681438613,0.052,41999.0,41996.0,0.11915366]
[1642681438816,0.052,41999.0,41997.0,0.10954041]
[1642681439116,0.052,41999.0,41997.0,0.15954041]
[1642681439755,2.14654591,42001.0,41999.0,0.00404908]
[1642681439957,0.383517,42000.0,41999.0,0.00404908]
[1642681440556,0.683517,42000.0,41999.0,0.00404908]
[1642681441556,1.01277048,42000.0,41999.0,0.00404908]
[1642681441758,1.15597048,42000.0,41999.0,0.00404908]
[1642681442554,1.16997048,42000.0,41999.0,0.00404908]
[1642681443014,0.840717,42000.0,41999.0,0.00404908]
[1642681443208,1.16558666,42000.0,41999.0,0.00404908]
[1642681443810,0.840717,42000.0,41999.0,0.00404908]
[1642681444011,0.826717,42000.0,41999.0,0.00404908]
[1642681444212,1.15443632,42000.0,41999.0,0.00404908]
[1642681444410,1.16943632,42000.0,41999.0,0.00404908]
[1642681445712,1.15443632,42000.0,41999.0,0.00404908]
[1642681446312,0.683517,42000.0,41999.0,0.00404908]
[1642681446612,0.698517,42000.0,41999.0,0.00404908]
[1642681447648,1.01877326,42000.0,41999.0,0.00404908]
[1642681447850,1.00377326,42000.0,41999.0,0.00404908]
[1642681448649,1.01877326,42000.0,41999.0,0.00404908]
[1642681449551,1.31877326,42000.0,41999.0,0.00404908]
[1642681449749,1.00377326,42000.0,41999.0,0.00404908]
[1642681450151,0.683517,42000.0,41999.0,0.00404908]
[1642681450608,0.683517,42000.0,41993.0,0.23274495]
[1642681450609,0.8,41999.0,41993.0,0.23274495]
[1642681450804,0.383517,41998.0,41994.0,0.05097501]
[1642681451116,0.38288265,41998.0,41994.0,0.00097501]
[1642681451811,0.38288265,41998.0,41992.0,0.24933057]
[1642681452206,0.01506876,42000.0,41992.0,0.57307399]
[1642681452407,0.004,41998.0,41992.0,0.61707399]
[1642681452609,0.004,41998.0,41994.0,0.05954727]
[1642681453908,0.00046368,41999.0,41994.0,0.05954727]
[1642681454111,6.876e-05,42000.0,41994.0,0.05954727]
[1642681454369,6.876e-05,42000.0,41994.0,0.66647131]
[1642681454370,0.00046368,41999.0,41994.0,0.66647131]
[1642681454568,0.00946368,41999.0,41996.0,0.05]
[1642681454767,0.00946368,41999.0,41997.0,0.383527]
[1642681454967,0.00946368,41999.0,41997.0,0.433527]
[1642681455175,0.00946368,41999.0,41997.0,0.86363595]
[1642681455368,0.009,41999.0,41997.0,0.86363595]
[1642681455668,0.00085829,42000.0,41999.0,0.00699277]
[1642681455873,0.00085829,42000.0,41998.0,0.05954131]
[1642681456069,0.383527,41999.0,41998.0,0.05954131]
[1642681456468,0.383527,41999.0,41998.0,0.06054131]
[1642681456671,0.383527,41999.0,41998.0,0.001]
[1642681457268,0.38343292,41999.0,41998.0,0.001]
[1642681457770,0.38343292,41999.0,41998.0,0.00573972]
[1642681458006,0.38343292,41999.0,41992.0,0.0012124]
[1642681458214,6.876e-05,42000.0,41992.0,0.0012124]
[1642681458412,0.057,41999.0,41992.0,0.60813644]
[1642681458608,0.057,41999.0,41997.0,0.05954428]
[1642681460407,0.013,41999.0,41997.0,0.06254428]
[1642681465907,0.383524,41998.0,41997.0,0.003]
[1642681466507,0.394524,41998.0,41997.0,0.013]
[1642681468107,0.011,41998.0,41997.0,0.06923713]
[1642681468306,0.011,41998.0,41997.0,0.107]
[1642681468508,6.876e-05,42000.0,41997.0,0.1]
[1642681468716,0.00120408,42000.0,41997.0,0.1]
[1642681469009,0.00120408,42000.0,41999.0,0.23219094]
[1642681469251,0.38472808,42000.0,41999.0,0.28219094]
[1642681469457,0.38472808,42000.0,41999.0,0.33219094]
[1642681469653,0.38472808,42000.0,41999.0,0.1]
[1642681469857,0.38359276,42000.0,41999.0,0.1]
[1642681470056,0.38359276,42000.0,41999.0,0.05]
[1642681470456,0.38359276,42000.0,41998.0,0.05]
[1642681470655,0.38359276,42000.0,41997.0,0.05]
[1642681470656,6.876e-05,42000.0,41997.0,0.05]
[1642681470854,6.876e-05,42000.0,41997.0,0.1]
[1642681472554,0.06106876,42000.0,41997.0,0.1]
[1642681473607,0.06106876,42000.0,41996.0,0.28229203]
[1642681473811,6.876e-05,42000.0,41996.0,0.05954189]
[1642681474010,6.876e-05,42000.0,41994.0,0.11908443]
[1642681474011,0.383524,41999.0,41994.0,0.11908443]
[1642681474608,0.393524,41999.0,41994.0,0.14008443]
[1642681474807,0.39459979,41999.0,41994.0,0.14008443]
[1642681475007,0.39459979,41999.0,41995.0,0.1]
[1642681475809,0.393524,41999.0,41995.0,0.1]
[1642681476108,0.3845998,41999.0,41995.0,0.1]
[1642681476307,2.14654591,42001.0,42000.0,0.28516563]
[1642681476512,2.53006691,42001.0,42000.0,0.33516563]
[1642681478358,2.53006691,42001.0,42000.0,0.38516563]
[1642681478557,2.54406691,42001.0,42000.0,0.38516563]
[1642681478757,2.54406691,42001.0,42000.0,0.53785291]
[1642681480157,2.54406691,42001.0,42000.0,0.58785291]
[1642681480358,2.53006691,42001.0,42000.0,0.58785291]
[1642681480610,2.54906691,42001.0,42000.0,0.38516563]
[1642681481412,2.54906691,42001.0,42000.0,0.33516563]
[1642681481715,2.52433366,42001.0,42000.0,0.33516563]
[1642681482508,2.53633366,42001.0,42000.0,0.33516563]
[1642681483711,2.52433366,42001.0,42000.0,0.33516563]
[1642681484457,2.53633366,42001.0,42000.0,0.33516563]
[1642681485662,2.52433366,42001.0,42000.0,0.33516563]
[1642681486460,2.53533366,42001.0,42000.0,0.33516563]
[1642681486865,2.53033366,42001.0,42000.0,0.33516563]
[1642681488407,2.51933366,42001.0,42000.0,0.33516563]
[1642681488607,2.53033366,42001.0,42000.0,0.33516563]
[1642681489809,2.51433366,42001.0,42000.0,0.33516563]
[1642681490610,2.52833366,42001.0,42000.0,0.33516563]
[1642681490810,2.52833366,42001.0,42000.0,0.34154402]
[1642681491010,2.52833366,42001.0,42000.0,0.33516563]
[1642681491613,2.52833366,42001.0,42000.0,0.34044305]
[1642681491852,2.51433366,42001.0,42000.0,0.33516563]
[1642681492062,2.51433366,42001.0,42000.0,0.34286717]
[1642681492255,2.51031614,42001.0,42000.0,0.33516563]
[1642681492455,2.52631614,42001.0,42000.0,0.34114473]
[1642681492657,2.52631614,42001.0,42000.0,0.33516563]
[1642681492853,2.52631614,42001.0,42000.0,0.34194966]
[1642681493054,2.52631614,42001.0,42000.0,0.33516563]
[1642681493256,2.52631614,42001.0,42000.0,0.342378]
[1642681493455,2.52631614,42001.0,42000.0,0.33516563]
[1642681493656,2.51031614,42001.0,42000.0,0.34105206]
[1642681493859,2.51031614,42001.0,42000.0,0.33516563]
[1642681494460,2.51031614,42001.0,42000.0,0.28516563]
[1642681494461,2.53031614,42001.0,42000.0,0.28516563]
[1642681494664,2.61870179,42001.0,42000.0,0.28516563]
[1642681495061,2.66630179,42001.0,42000.0,0.28516563]
[1642681495805,2.64630179,42001.0,42000.0,0.28516563]
[1642681496006,2.80136179,42001.0,42000.0,0.28516563]
[1642681496605,2.81236179,42001.0,42000.0,0.28516563]
[1642681497809,2.80136179,42001.0,42000.0,0.28516563]
[1642681498509,2.81236179,42001.0,42000.0,0.28516563]
[1642681499362,2.72397614,42001.0,42000.0,0.28516563]
[1642681499767,2.71297614,42001.0,42000.0,0.28516563]
[1642681500161,2.71297614,42001.0,42000.0,0.33516563]
[1642681500661,2.81285059,42001.0,42000.0,0.33516563]
[1642681501863,2.80085059,42001.0,42000.0,0.33516563]
[1642681502063,2.71297614,42001.0,42000.0,0.33516563]
[1642681502463,2.81185156,42001.0,42000.0,0.33516563]
[1642681503114,4.07085156,42001.0,42000.0,0.33516563]
[1642681503320,0.85,42000.0,41989.0,0.00120824]
[1642681503519,0.96913,41996.0,41995.0,0.00097597]
[1642681503717,1.400251,41996.0,41995.0,0.00097597]
[1642681503917,1.281121,41996.0,41995.0,0.00097597]
[1642681504416,2.15103595,41996.0,41995.0,0.00097597]
[1642681504616,1.259,41995.0,41990.0,0.0001719]
[1642681504824,0.919444,41991.0,41990.0,0.0001719]
[1642681505117,1.57944882,41991.0,41987.0,0.00022347]
[1642681505416,1.46957012,41988.0,41987.0,0.00022347]
[1642681505614,1.51717012,41988.0,41987.0,0.00022347]
[1642681506013,1.51837472,41988.0,41987.0,0.00022347]
[1642681506215,1.51837472,41988.0,41985.0,0.00123384]
[1642681506414,1.51717012,41988.0,41986.0,0.00024066]
[1642681506615,1.52817012,41988.0,41986.0,0.00024066]
[1642681507465,1.52817012,41988.0,41985.0,0.00123386]
[1642681507661,1.52817012,41988.0,41986.0,0.00024066]
[1642681507860,1.51717012,41988.0,41986.0,0.00024066]
[1642681508260,0.33092085,41987.0,41986.0,0.00024066]
[1642681508462,0.44796485,41987.0,41986.0,0.00024066]
[1642681508763,0.967044,41987.0,41986.0,0.00024066]
[1642681508963,1.32279136,41987.0,41986.0,0.00024066]
[1642681509159,0.967044,41987.0,41986.0,0.00024066]
[1642681509762,0.967044,41987.0,41985.0,0.00025785]
[1642681509968,0.683521,41986.0,41985.0,0.00025785]
[1642681510162,0.731121,41986.0,41985.0,0.00025785]
[1642681510511,0.742121,41986.0,41985.0,0.00025785]
[1642681511110,1.09635999,41986.0,41985.0,0.00025785]
[1642681511512,0.79635999,41986.0,41985.0,0.00025785]
[1642681511913,0.78535999,41986.0,41985.0,0.00025785]
[1642681512411,0.78535999,41986.0,41984.0,0.0022]
[1642681512412,0.99974215,41985.0,41984.0,0.0022]
[1642681512618,1.45804238,41985.0,41984.0,0.0022]
[1642681512914,1.46990238,41985.0,41984.0,0.0022]
[1642681513213,1.55880238,41985.0,41984.0,0.0022]
[1642681513412,1.55450683,41985.0,41984.0,0.0022]
[1642681514562,1.56450683,41985.0,41984.0,0.0022]
[1642681514761,1.47560683,41985.0,41984.0,0.0022]
[1642681515759,1.46374683,41985.0,41984.0,0.0022]
[1642681516159,1.45374683,41985.0,41984.0,0.0022]
[1642681516761,1.46365165,41985.0,41984.0,0.0022]
[1642681517668,0.983521,41984.0,41977.0,0.41084889]
[1642681518018,1.043096,41984.0,41982.0,0.00097614]
[1642681518218,0.35577598,41983.0,41982.0,0.00097614]
[1642681518418,0.42521998,41983.0,41982.0,0.00097614]
[1642681518820,0.069444,41983.0,41982.0,0.00097614]
[1642681519020,0.23845652,41981.0,41978.0,0.00012033]
[1642681519528,0.431121,41980.0,41978.0,0.00012033]
[1642681520722,0.441121,41980.0,41978.0,0.00012033]
[1642681521776,0.32769013,41979.0,41978.0,0.00012033]
[1642681521976,0.39713413,41979.0,41978.0,0.00012033]
[1642681522576,0.079444,41979.0,41978.0,0.00012033]
[1642681523777,0.069444,41979.0,41978.0,0.00012033]
[1642681524378,0.42544799,41979.0,41978.0,0.00012033]
[1642681524577,0.43121647,41979.0,41978.0,0.00012033]
[1642681524979,0.38795258,41979.0,41978.0,0.00012033]
[1642681525809,0.37795258,41979.0,41978.0,0.00012033]
[1642681526610,0.38795258,41979.0,41978.0,0.00012033]
[1642681527811,0.37795258,41979.0,41978.0,0.00012033]
[1642681528612,0.40081258,41979.0,41978.0,0.00012033]
[1642681529264,0.40081258,41979.0,41977.0,0.00013752]
[1642681529465,0.74685389,41978.0,41977.0,0.00013752]
[1642681530270,0.383521,41978.0,41977.0,0.00013752]
[1642681530667,0.395521,41978.0,41977.0,0.00013752]
[1642681531869,0.383521,41978.0,41977.0,0.00013752]
[1642681532669,0.391521,41978.0,41977.0,0.00013752]
[1642681533116,0.008,41978.0,41977.0,0.00013752]
[1642681533522,0.008,41978.0,41977.0,1.0905578]
[1642681533714,0.008,41978.0,41977.0,1.4742058]
[1642681533915,0.99535142,41985.0,41977.0,1.6742058]
[1642681534217,0.99535142,41985.0,41978.0,0.00513924]
[1642681534218,0.18240614,41983.0,41978.0,0.00513924]
[1642681534417,0.383648,41982.0,41978.0,0.00513924]
[1642681534617,0.383648,41982.0,41979.0,0.00010314]
[1642681534817,0.383648,41982.0,41977.0,0.29383976]
[1642681535015,0.18240614,41983.0,41977.0,0.29383976]
[1642681535216,0.16481824,41983.0,41977.0,0.29383976]
[1642681535715,0.16481824,41983.0,41977.0,0.28855427]
[1642681536759,0.17381824,41983.0,41976.0,0.0011]
[1642681537962,0.16481824,41983.0,41976.0,0.0011]
[1642681538161,0.383648,41982.0,41976.0,0.0011]
[1642681538562,0.443225,41982.0,41976.0,0.0011]